fUSD/lending_fUSD_20250208
["ID","MTS","AMOUNT","RATE_DAILY","PERIOD"]
[352235038,1739013062774,-755.52,0.00011269,2]
[352235039,1739013062784,-1450.19,0.00011269,2]
[352235040,1739013062794,-755.35,0.00011269,2]
[352235041,1739013062805,-1681.08,0.00011269,2]
[352235042,1739013062815,-1214.99,0.00011269,2]
[352235043,1739013062825,-500.0,0.00011269,2]
[352235044,1739013062835,-623.04,0.00011269,2]
[352235045,1739013062846,-2156.18,0.00011269,2]
[352235046,1739013062858,-5375.13,0.00011269,2]
[352235047,1739013062867,-155.827945,0.00011269,2]
[352235048,1739013062877,-1130.4,0.00011269,2]
[352235049,1739013062886,-2448.76,0.00011269,2]
[352235050,1739013062896,-500.0,0.00011269,2]
[352235051,1739013062906,-1595.13,0.00011269,2]
[352235052,1739013062916,-330.16297407,0.0001127,2]
[352235053,1739013062926,-501.34707506,0.0001127,2]
[352235054,1739013062936,-500.0,0.0001127,2]
[352235055,1739013062946,-500.0,0.0001127,2]
[352235056,1739013062955,-647.25,0.0001127,2]
[352235057,1739013062965,-500.0,0.0001127,2]
[352235058,1739013062975,-425.3063204,0.0001127,2]
[352235059,1739013062986,-500.0,0.0001127,2]
[352235060,1739013062995,-500.0,0.0001127,2]
[352235061,1739013063004,-500.0,0.0001127,2]
[352235062,1739013063013,-510.2,0.0001127,2]
[352235063,1739013063023,-500.0,0.0001127,2]
[352235064,1739013063034,-500.0,0.0001127,2]
[352235065,1739013063043,-500.0,0.0001127,2]
[352235066,1739013063053,-500.0,0.0001127,2]
[352235067,1739013063063,-500.0,0.0001127,2]
[352235068,1739013063076,-502.55215173,0.0001127,2]
[352235069,1739013063088,-2124.11,0.0001127,2]
[352235070,1739013063098,-500.0,0.0001127,2]
[352235071,1739013063107,-5893.56,0.0001127,2]
[352235072,1739013063118,-3358.801698,0.0001127,2]
[352235073,1739013063128,-1726.29,0.0001127,2]
[352235074,1739013063137,-2160.36,0.0001127,2]
[352235075,1739013063150,-576.21,0.0001127,2]
[352235076,1739013063161,-1327.73,0.0001127,2]
[352235077,1739013063170,-3645.58,0.0001127,2]
[352235078,1739013063180,-3378.237504,0.0001127,2]
[352235079,1739013063189,-152.091761,0.0001127,2]
[352235080,1739013063199,-774.41,0.0001127,2]
[352235081,1739013063208,-2948.09,0.0001127,2]
[352235082,1739013063219,-2267.8,0.0001127,2]
[352235083,1739013063229,-1001.04,0.0001127,2]
[352235084,1739013063238,-500.0,0.0001127,2]
[352235085,1739013063247,-1847.11,0.0001127,2]
[352235086,1739013063257,-503.42109767,0.0001127,2]
[352235087,1739013063270,-500.0,0.0001127,2]
[352235088,1739013063280,-1735.24,0.0001127,2]
[352235089,1739013063292,-1678.32,0.0001127,2]
[352235090,1739013063302,-500.0,0.0001127,2]
[352235091,1739013063312,-3512.39,0.0001127,2]
[352235092,1739013063322,-3805.67,0.0001127,2]
[352235093,1739013063332,-2607.62,0.0001127,2]
[352235094,1739013063342,-3258.61,0.0001127,2]
[352235095,1739013063356,-4739.99,0.0001127,2]
[352235096,1739013063367,-12222.98,0.0001127,2]
[352235097,1739013063377,-3871.33,0.0001127,2]
[352235098,1739013063389,-5557.03,0.0001127,2]
[352235099,1739013063400,-500.0,0.0001127,2]
[352235100,1739013063411,-500.0,0.0001127,2]
[352235101,1739013063424,-8192.71,0.0001127,2]
[352235102,1739013063433,-2796.47,0.0001127,2]
[352235103,1739013063444,-538.39,0.0001127,2]
[352235104,1739013063453,-555.96,0.0001127,2]
[352235105,1739013063463,-1656.22,0.0001127,2]
[352235106,1739013063474,-5463.22,0.0001127,2]
[352235107,1739013063485,-4928.16,0.0001127,2]
[352235108,1739013063495,-4249.23,0.0001127,2]
[352235109,1739013063505,-500.0,0.0001127,2]
[352235110,1739013063518,-500.0,0.0001127,2]
[352235111,1739013063529,-500.0,0.0001127,2]
[352235112,1739013063539,-523.42765883,0.00011271,2]
[352235113,1739013063549,-500.0,0.00011271,2]
[352235114,1739013063559,-255.60074429,0.00011271,2]
[352235115,1739013063569,-504.95504745,0.00011271,2]
[352235116,1739013063582,-500.0,0.00011271,2]
[352235117,1739013063591,-500.0,0.00011271,2]
[352235118,1739013063601,-787.27,0.00011271,2]
[352235119,1739013063613,-500.0,0.00011271,2]
[352235120,1739013063622,-500.0,0.00011271,2]
[352235121,1739013063632,-501.86133191,0.00011271,2]
[352235122,1739013063642,-500.0,0.00011271,2]
[352235123,1739013063653,-502.11083024,0.00011271,2]
[352235124,1739013063663,-502.49418454,0.00011271,2]
[352235125,1739013063673,-501.47173836,0.00011271,2]
[352235126,1739013063683,-500.0,0.00011271,2]
[352235127,1739013063692,-500.0,0.00011271,2]
[352235128,1739013063702,-501.56706838,0.00011271,2]
[352235129,1739013063714,-500.0,0.00011271,2]
[352235130,1739013063725,-517.87,0.00011271,2]
[352235131,1739013063736,-500.0,0.00011271,2]
[352235132,1739013063746,-502.6265998,0.00011271,2]
[352235133,1739013063756,-500.0,0.00011271,2]
[352235134,1739013063766,-500.0,0.00011271,2]
[352235135,1739013063776,-500.0,0.00011271,2]
[352235136,1739013063786,-500.0,0.00011271,2]
[352235137,1739013063796,-606.67155444,0.00011271,2]
[352235138,1739013063807,-500.0,0.00011271,2]
[352235139,1739013063817,-500.88732028,0.00011271,2]
[352235140,1739013063827,-500.0,0.00011271,2]
[352235141,1739013063836,-500.0,0.00011271,2]
[352235142,1739013063846,-661.99,0.00011271,2]
[352235143,1739013063856,-500.0,0.00011271,2]
[352235144,1739013063865,-500.0,0.00011271,2]
[352235145,1739013063875,-500.0,0.00011271,2]
[352235146,1739013063884,-500.0,0.00011271,2]
[352235147,1739013063893,-821.02,0.00011271,2]
[352235148,1739013063903,-500.0,0.00011271,2]
[352235149,1739013063912,-500.0,0.00011271,2]
[352235150,1739013063922,-1772.05,0.00011271,2]
[352235151,1739013063931,-500.0,0.00011271,2]
[352235152,1739013063941,-500.0,0.00011271,2]
[352235153,1739013063953,-500.0,0.00011271,2]
[352235154,1739013063963,-964.41,0.00011271,2]
[352235155,1739013063973,-896.8,0.00011271,2]
[352235156,1739013063983,-501.56971783,0.00011271,2]
[352235157,1739013063992,-500.0,0.00011271,2]
[352235158,1739013064002,-2054.77,0.00011271,2]
[352235159,1739013064012,-500.0,0.00011271,2]
[352235160,1739013064022,-500.0,0.00011271,2]
[352235161,1739013064032,-500.0,0.00011271,2]
[352235162,1739013064042,-447.0957526,0.00011271,2]
[352235163,1739013064052,-500.0,0.00011271,2]
[352235164,1739013064061,-500.0,0.00011271,2]
[352235165,1739013064070,-500.0,0.00011271,2]
[352235166,1739013064080,-1316.88,0.00011271,2]
[352235167,1739013064089,-500.0,0.00011271,2]
[352235168,1739013064099,-500.0,0.00011271,2]
[352235169,1739013064108,-500.0,0.00011271,2]
[352235170,1739013064119,-500.0,0.00011271,2]
[352235171,1739013064129,-526.65331739,0.00011271,2]
[352235172,1739013064139,-2052.96,0.00011271,2]
[352235173,1739013064148,-500.0,0.00011271,2]
[352235174,1739013064158,-500.0,0.00011271,2]
[352235175,1739013064168,-500.0,0.00011271,2]
[352235176,1739013064178,-500.0,0.00011271,2]
[352235177,1739013064188,-500.0,0.00011271,2]
[352235178,1739013064198,-500.0,0.00011271,2]
[352235179,1739013064208,-811.38,0.00011271,2]
[352235180,1739013064219,-500.0,0.00011271,2]
[352235181,1739013064230,-1019.72,0.00011271,2]
[352235182,1739013064240,-500.0,0.00011271,2]
[352235183,1739013064251,-500.0,0.00011271,2]
[352235184,1739013064262,-705.84,0.00011271,2]
[352235185,1739013064275,-500.0,0.00011271,2]
[352235186,1739013064285,-2537.39,0.00011271,2]
[352235187,1739013064296,-500.0,0.00011271,2]
[352235188,1739013064307,-500.0,0.00011271,2]
[352235189,1739013064319,-500.0,0.00011271,2]
[352235190,1739013064330,-716.34,0.00011271,2]
[352235191,1739013064341,-500.0,0.00011271,2]
[352235192,1739013064356,-500.0,0.00011271,2]
[352235193,1739013064367,-500.0,0.00011271,2]
[352235194,1739013064377,-500.0,0.00011271,2]
[352235195,1739013064387,-936.48,0.00011271,2]
[352235196,1739013064398,-500.0,0.00011271,2]
[352235197,1739013064409,-500.0,0.00011271,2]
[352235198,1739013064420,-1011.69,0.00011271,2]
[352235199,1739013064432,-500.0,0.00011271,2]
[352235200,1739013064442,-500.0,0.00011271,2]
[352235201,1739013064452,-874.09,0.00011271,2]
[352235202,1739013064461,-500.0,0.00011271,2]
[352235203,1739013064470,-500.0,0.00011271,2]
[352235204,1739013064481,-726.83,0.00011271,2]
[352235205,1739013064491,-500.0,0.00011271,2]
[352235206,1739013064502,-500.0,0.00011271,2]
[352235207,1739013064511,-500.0,0.00011271,2]
[352235208,1739013064526,-500.0,0.00011271,2]
[352235209,1739013064537,-500.0,0.00011271,2]
[352235210,1739013064547,-500.0,0.00011271,2]
[352235211,1739013064557,-500.0,0.00011271,2]
[352235212,1739013064567,-500.0,0.00011271,2]
[352235213,1739013064578,-500.0,0.00011271,2]
[352235214,1739013064588,-1536.23,0.00011271,2]
[352235215,1739013064599,-500.0,0.00011271,2]
[352235216,1739013064610,-500.0,0.00011271,2]
[352235217,1739013064620,-773.18,0.00011271,2]
[352235218,1739013064629,-500.0,0.00011271,2]
[352235219,1739013064639,-500.0,0.00011271,2]
[352235220,1739013064648,-611.63,0.00011271,2]
[352235221,1739013064657,-532.87,0.00011271,2]
[352235222,1739013064666,-222.47773545,0.00011271,2]
[352235223,1739013064675,-500.0,0.00011271,2]
[352235224,1739013064685,-500.0,0.00011271,2]
[352235225,1739013064694,-708.91,0.00011271,2]
[352235226,1739013064704,-500.0,0.00011271,2]
[352235227,1739013064713,-500.0,0.00011271,2]
[352235228,1739013064722,-500.0,0.00011271,2]
[352235229,1739013064732,-2071.14,0.00011271,2]
[352235230,1739013064741,-500.0,0.00011271,2]
[352235231,1739013064750,-500.0,0.00011271,2]
[352235232,1739013064760,-818.79,0.00011271,2]
[352235233,1739013064771,-500.0,0.00011271,2]
[352235234,1739013064781,-500.0,0.00011271,2]
[352235235,1739013064790,-981.65,0.00011271,2]
[352235236,1739013064799,-500.0,0.00011271,2]
[352235237,1739013064809,-500.0,0.00011271,2]
[352235238,1739013064818,-500.0,0.00011271,2]
[352235239,1739013064828,-500.0,0.00011271,2]
[352235240,1739013064838,-500.0,0.00011271,2]
[352235241,1739013064847,-947.55,0.00011271,2]
[352235242,1739013064856,-500.0,0.00011271,2]
[352235243,1739013064866,-425.12901862,0.00011271,2]
[352235244,1739013064875,-500.0,0.00011271,2]
[352235245,1739013064884,-2250.99,0.00011271,2]
[352235246,1739013064893,-500.0,0.00011271,2]
[352235247,1739013064903,-500.0,0.00011271,2]
[352235248,1739013064913,-500.0,0.00011271,2]
[352235249,1739013064922,-500.0,0.00011271,2]
[352235250,1739013064931,-500.0,0.00011271,2]
[352235251,1739013064941,-500.0,0.00011271,2]
[352235252,1739013064951,-500.0,0.00011271,2]
[352235253,1739013064960,-500.0,0.00011271,2]
[352235254,1739013064970,-500.0,0.00011271,2]
[352235255,1739013064981,-500.0,0.00011271,2]
[352235256,1739013064990,-500.0,0.00011271,2]
[352235257,1739013065000,-216.50770705,0.00011271,2]
[352235258,1739013065010,-500.0,0.00011271,2]
[352235259,1739013065021,-500.0,0.00011271,2]
[352235260,1739013065034,-505.75520398,0.00011271,2]
[352235261,1739013065044,-500.0,0.00011271,2]
[352235262,1739013065053,-500.0,0.00011271,2]
[352235263,1739013065064,-500.0,0.00011271,2]
[352235264,1739013065073,-500.0,0.00011271,2]
[352235265,1739013065083,-559.06,0.00011271,2]
[352235266,1739013065092,-514.45,0.00011271,2]
[352235267,1739013065101,-236.20528937,0.00011271,2]
[352235268,1739013065111,-500.0,0.00011271,2]
[352235269,1739013065120,-500.0,0.00011271,2]
[352235270,1739013065129,-854.4,0.00011271,2]
[352235271,1739013065138,-500.0,0.00011271,2]
[352235272,1739013065148,-500.0,0.00011271,2]
[352235273,1739013065158,-500.0,0.00011271,2]
[352235274,1739013065167,-500.0,0.00011271,2]
[352235275,1739013065177,-500.0,0.00011271,2]
[352235276,1739013065186,-159.3069642,0.00011271,2]
[352235277,1739013065195,-500.0,0.00011271,2]
[352235278,1739013065205,-500.0,0.00011271,2]
[352235279,1739013065214,-513.19,0.00011271,2]
[352235280,1739013065224,-1032.34,0.00011271,2]
[352235281,1739013065233,-500.0,0.00011271,2]
[352235282,1739013065244,-500.0,0.00011271,2]
[352235283,1739013065254,-500.0,0.00011271,2]
[352235284,1739013065263,-500.0,0.00011271,2]
[352235285,1739013065274,-158.02494731,0.00011271,2]
[352235286,1739013065284,-504.52130216,0.00011271,2]
[352235287,1739013065293,-500.0,0.00011271,2]
[352235288,1739013065303,-500.0,0.00011271,2]
[352235289,1739013065313,-500.0,0.00011271,2]
[352235290,1739013065323,-500.0,0.00011271,2]
[352235291,1739013065333,-1046.28,0.00011271,2]
[352235292,1739013065343,-2383.11,0.00011271,2]
[352235293,1739013065357,-626.31,0.00011271,2]
[352235294,1739013065367,-500.0,0.00011271,2]
[352235295,1739013065376,-500.0,0.00011271,2]
[352235296,1739013065386,-500.0,0.00011271,2]
[352235297,1739013065395,-614.14,0.00011271,2]
[352235298,1739013065405,-966.17,0.00011271,2]
[352235299,1739013065415,-500.0,0.00011271,2]
[352235300,1739013065426,-203.39704113,0.00011271,2]
[352235301,1739013065435,-1038.87,0.00011271,2]
[352235302,1739013065445,-500.0,0.00011271,2]
[352235303,1739013065455,-509.76010666,0.00011271,2]
[352235304,1739013065464,-500.0,0.00011271,2]
[352235305,1739013065474,-500.0,0.00011271,2]
[352235306,1739013065484,-500.0,0.00011271,2]
[352235307,1739013065493,-1106.05,0.00011271,2]
[352235308,1739013065502,-500.0,0.00011271,2]
[352235309,1739013065512,-500.0,0.00011271,2]
[352235310,1739013065523,-500.0,0.00011271,2]
[352235311,1739013065534,-500.0,0.00011271,2]
[352235312,1739013065543,-337.83993543,0.00011271,2]
[352235313,1739013065553,-500.0,0.00011271,2]
[352235314,1739013065562,-2015.73,0.00011271,2]
[352235315,1739013065571,-500.0,0.00011271,2]
[352235316,1739013065580,-500.0,0.00011271,2]
[352235317,1739013065589,-500.0,0.00011271,2]
[352235318,1739013065600,-500.0,0.00011271,2]
[352235319,1739013065610,-1931.33,0.00011271,2]
[352235320,1739013065619,-500.0,0.00011271,2]
[352235321,1739013065628,-644.26380603,0.00011271,2]
[352235322,1739013065637,-500.0,0.00011271,2]
[352235323,1739013065646,-500.0,0.00011271,2]
[352235324,1739013065656,-500.0,0.00011271,2]
[352235325,1739013065665,-559.49,0.00011271,2]
[352235326,1739013065675,-500.0,0.00011271,2]
[352235327,1739013065687,-500.0,0.00011271,2]
[352235328,1739013065696,-500.0,0.00011271,2]
[352235329,1739013065705,-504.33548523,0.00011271,2]
[352235330,1739013065715,-1077.31,0.00011271,2]
[352235331,1739013065725,-500.0,0.00011271,2]
[352235332,1739013065734,-500.0,0.00011271,2]
[352235333,1739013065743,-500.0,0.00011271,2]
[352235334,1739013065752,-500.0,0.00011271,2]
[352235335,1739013065761,-500.0,0.00011271,2]
[352235336,1739013065772,-500.0,0.00011271,2]
[352235337,1739013065781,-932.69,0.00011271,2]
[352235338,1739013065790,-2072.47,0.00011271,2]
[352235339,1739013065799,-2541.69,0.00011271,2]
[352235340,1739013065808,-501.92,0.00011271,2]
[352235341,1739013065817,-500.0,0.00011271,2]
[352235342,1739013065826,-500.0,0.00011271,2]
[352235343,1739013065834,-500.0,0.00011271,2]
[352235344,1739013065843,-721.58,0.00011271,2]
[352235345,1739013065852,-761.18,0.00011271,2]
[352235346,1739013065861,-500.0,0.00011271,2]
[352235347,1739013065870,-500.0,0.00011271,2]
[352235348,1739013065879,-500.0,0.00011271,2]
[352235349,1739013065888,-500.0,0.00011271,2]
[352235350,1739013065897,-1724.83,0.00011271,2]
[352235351,1739013065906,-500.0,0.00011271,2]
[352235352,1739013065915,-2030.46,0.00011271,2]
[352235353,1739013065924,-500.0,0.00011271,2]
[352235354,1739013065934,-902.21,0.00011271,2]
[352235355,1739013065943,-500.0,0.00011271,2]
[352235356,1739013065952,-500.0,0.00011271,2]
[352235357,1739013065961,-2636.15,0.00011271,2]
[352235358,1739013065970,-2002.7,0.00011271,2]
[352235359,1739013065980,-500.0,0.00011271,2]
[352235360,1739013065989,-384.36885087,0.00011271,2]
[352235361,1739013065999,-500.0,0.00011271,2]
[352235362,1739013066009,-641.67174604,0.00011271,2]
[352235363,1739013066019,-705.09,0.00011271,2]
[352235364,1739013066028,-500.0,0.00011271,2]
[352235365,1739013066038,-500.0,0.00011271,2]
[352235366,1739013066047,-500.0,0.00011271,2]
[352235367,1739013066056,-500.0,0.00011271,2]
[352235368,1739013066066,-2090.85,0.00011271,2]
[352235369,1739013066075,-1600.49,0.00011271,2]
[352235370,1739013066084,-1065.95,0.00011271,2]
[352235371,1739013066094,-2402.98,0.00011271,2]
[352235372,1739013066104,-2859.61,0.00011271,2]
[352235373,1739013066114,-500.0,0.00011271,2]
[352235374,1739013066123,-500.0,0.00011271,2]
[352235375,1739013066133,-500.0,0.00011271,2]
[352235376,1739013066143,-500.0,0.00011271,2]
[352235377,1739013066152,-500.0,0.00011271,2]
[352235378,1739013066163,-2754.41,0.00011271,2]
[352235379,1739013066173,-879.4,0.00011271,2]
[352235380,1739013066183,-2692.97,0.00011271,2]
[352235381,1739013066192,-503.39860726,0.00011271,2]
[352235382,1739013066202,-3004.1,0.00011271,2]
[352235383,1739013066211,-5148.76,0.00011271,2]
[352235384,1739013066221,-502.80383403,0.00011271,2]
[352235385,1739013066398,-500.0,0.00011271,2]
[352235386,1739013066428,-1559.38,0.00011271,2]
[352235387,1739013066438,-500.0,0.00011271,2]
[352235388,1739013066448,-500.0,0.00011271,2]
[352235389,1739013066459,-500.0,0.00011271,2]
[352235390,1739013066468,-2843.08,0.00011271,2]
[352235391,1739013066478,-502.77975766,0.00011271,2]
[352235392,1739013066487,-1375.24,0.00011271,2]
[352235393,1739013066496,-2268.82,0.00011271,2]
[352235394,1739013066509,-500.0,0.00011271,2]
[352235395,1739013066520,-5022.25,0.00011271,2]
[352235396,1739013066531,-500.0,0.00011271,2]
[352235397,1739013066543,-711.21,0.00011271,2]
[352235398,1739013066555,-500.0,0.00011271,2]
[352235399,1739013066564,-1670.67,0.00011271,2]
[352235400,1739013066574,-500.0,0.00011271,2]
[352235401,1739013066583,-500.0,0.00011271,2]
[352235402,1739013066593,-15081.68,0.00011271,2]
[352235403,1739013066602,-1399.36,0.00011271,2]
[352235404,1739013066614,-1387.07,0.00011271,2]
[352235405,1739013066625,-506.30844023,0.00011271,2]
[352235406,1739013066634,-500.0,0.00011271,2]
[352235407,1739013066643,-6334.51,0.00011271,2]
[352235408,1739013066652,-567.59,0.00011271,2]
[352235409,1739013066661,-500.0,0.00011271,2]
[352235410,1739013066670,-545.26,0.00011271,2]
[352235411,1739013066680,-500.0,0.00011271,2]
[352235412,1739013066690,-2225.81,0.00011271,2]
[352235413,1739013066701,-3509.06,0.00011271,2]
[352235414,1739013066711,-2285.19,0.00011271,2]
[352235415,1739013066721,-500.0,0.00011271,2]
[352235416,1739013066730,-5176.3,0.00011271,2]
[352235417,1739013066739,-500.0,0.00011271,2]
[352235418,1739013066749,-500.0,0.00011271,2]
[352235419,1739013066758,-679.18,0.00011271,2]
[352235420,1739013066767,-500.0,0.00011271,2]
[352235421,1739013066776,-2222.63,0.00011271,2]
[352235422,1739013066785,-500.0,0.00011271,2]
[352235423,1739013066795,-1424.54,0.00011271,2]
[352235424,1739013066804,-1080.31,0.00011271,2]
[352235425,1739013066813,-500.0,0.00011271,2]
[352235426,1739013066822,-500.0,0.00011271,2]
[352235427,1739013066831,-500.0,0.00011271,2]
[352235428,1739013066840,-3915.69,0.00011271,2]
[352235429,1739013066850,-1682.01,0.00011271,2]
[352235430,1739013066859,-500.0,0.00011271,2]
[352235431,1739013066869,-500.0,0.00011271,2]
[352235432,1739013066878,-2047.9,0.00011271,2]
[352235433,1739013066887,-1485.93,0.00011271,2]
[352235434,1739013066896,-6299.13,0.00011271,2]
[352235435,1739013066905,-500.0,0.00011271,2]
[352235436,1739013066914,-500.0,0.00011271,2]
[352235437,1739013066924,-3481.83,0.00011271,2]
[352235438,1739013066933,-4781.03,0.00011271,2]
[352235439,1739013066942,-500.0,0.00011271,2]
[352235440,1739013066951,-500.0,0.00011271,2]
[352235441,1739013066960,-862.73,0.00011271,2]
[352235442,1739013066970,-500.0,0.00011271,2]
[352235443,1739013066979,-500.0,0.00011271,2]
[352235444,1739013066988,-883.74,0.00011271,2]
[352235445,1739013066998,-875.14,0.00011271,2]
[352235446,1739013067008,-500.0,0.00011271,2]
[352235447,1739013067021,-284.16693676,0.00011271,2]
[352235448,1739013067030,-743.76,0.00011271,2]
[352235449,1739013067040,-769.04,0.00011271,2]
[352235450,1739013067050,-500.0,0.00011271,2]
[352235451,1739013067059,-500.0,0.00011271,2]
[352235452,1739013067068,-1609.57,0.00011271,2]
[352235453,1739013067078,-500.0,0.00011271,2]
[352235454,1739013067087,-3900.57,0.00011271,2]
[352235455,1739013067096,-500.0,0.00011271,2]
[352235456,1739013067105,-2579.73,0.00011271,2]
[352235457,1739013067113,-3578.24,0.00011271,2]
[352235458,1739013067122,-500.0,0.00011271,2]
[352235459,1739013067132,-500.0,0.00011271,2]
[352235460,1739013067140,-2832.35,0.00011271,2]
[352235461,1739013067150,-500.0,0.00011271,2]
[352235462,1739013067159,-500.0,0.00011271,2]
[352235463,1739013067168,-3996.35,0.00011271,2]
[352235464,1739013067177,-813.25,0.00011271,2]
[352235465,1739013067187,-6617.64,0.00011271,2]
[352235466,1739013067198,-500.0,0.00011271,2]
[352235467,1739013067208,-4921.37,0.00011271,2]
[352235468,1739013067218,-327.86747057,0.00011271,2]
[352235469,1739013067228,-701.82,0.00011271,2]
[352235470,1739013067238,-500.0,0.00011271,2]
[352235471,1739013067248,-2017.92,0.00011271,2]
[352235472,1739013067258,-755.0,0.00011271,2]
[352235473,1739013067269,-974.03,0.00011271,2]
[352235474,1739013067278,-1908.71,0.00011271,2]
[352235475,1739013067288,-642.67,0.00011271,2]
[352235476,1739013067297,-500.0,0.00011271,2]
[352235477,1739013067306,-2729.51,0.00011271,2]
[352235478,1739013067315,-500.0,0.00011271,2]
[352235479,1739013067325,-2356.49,0.00011271,2]
[352235480,1739013067334,-4684.81,0.00011271,2]
[352235481,1739013067343,-948.63,0.00011271,2]
[352235482,1739013067357,-3928.31,0.00011271,2]
[352235483,1739013067366,-500.0,0.00011271,2]
[352235484,1739013067375,-1496.66,0.00011271,2]
[352235485,1739013067385,-500.0,0.00011271,2]
[352235486,1739013067395,-500.0,0.00011271,2]
[352235487,1739013067405,-1961.59,0.00011271,2]
[352235488,1739013067414,-500.0,0.00011272,2]
[352235489,1739013067423,-4538.82,0.00011272,2]
[352235490,1739013067434,-500.0,0.00011272,2]
[352235491,1739013067444,-501.93171129,0.00011273,2]
[352235492,1739013067453,-500.0,0.00011273,2]
[352235493,1739013067463,-399.42896717,0.00011273,2]
[352235494,1739013067472,-228.13608899,0.00011273,2]
[352235495,1739013067481,-500.0,0.00011273,2]
[352235496,1739013067490,-500.0,0.00011273,2]
[352235497,1739013067499,-500.0,0.00011273,2]
[352235498,1739013067508,-468.66974095,0.00011273,2]
[352235499,1739013067518,-500.0,0.00011273,2]
[352235500,1739013067527,-500.0,0.00011273,2]
[352235501,1739013067537,-633.17,0.00011273,2]
[352235502,1739013067546,-500.0,0.00011273,2]
[352235503,1739013067556,-500.0,0.00011273,2]
[352235504,1739013067565,-654.42,0.00011273,2]
[352235505,1739013067574,-500.0,0.00011273,2]
[352235506,1739013067584,-500.0,0.00011273,2]
[352235507,1739013067594,-500.0,0.00011273,2]
[352235508,1739013067603,-504.87748506,0.00011273,2]
[352235509,1739013067613,-501.85110699,0.00011273,2]
[352235510,1739013067623,-914.6,0.00011273,2]
[352235511,1739013067632,-500.0,0.00011273,2]
[352235512,1739013067642,-500.0,0.00011273,2]
[352235513,1739013067652,-500.0,0.00011273,2]
[352235514,1739013067662,-922.56,0.00011273,2]
[352235515,1739013067672,-500.0,0.00011273,2]
[352235516,1739013067682,-500.0,0.00011273,2]
[352235517,1739013067691,-500.0,0.00011273,2]
[352235518,1739013067702,-500.0,0.00011273,2]
[352235519,1739013067711,-500.0,0.00011273,2]
[352235520,1739013067720,-500.0,0.00011273,2]
[352235521,1739013067730,-500.0,0.00011273,2]
[352235522,1739013067740,-500.0,0.00011273,2]
[352235523,1739013067749,-637.97,0.00011273,2]
[352235524,1739013067759,-155.56664618,0.00011273,2]
[352235525,1739013067768,-500.0,0.00011273,2]
[352235526,1739013067778,-500.0,0.00011273,2]
[352235527,1739013067787,-500.0,0.00011273,2]
[352235528,1739013067796,-500.0,0.00011273,2]
[352235529,1739013067805,-500.0,0.00011273,2]
[352235530,1739013067815,-500.0,0.00011273,2]
[352235531,1739013067825,-500.0,0.00011273,2]
[352235532,1739013067834,-764.68,0.00011273,2]
[352235533,1739013067844,-500.0,0.00011273,2]
[352235534,1739013067854,-500.0,0.00011273,2]
[352235535,1739013067863,-500.0,0.00011273,2]
[352235536,1739013067872,-500.0,0.00011273,2]
[352235537,1739013067882,-634.37,0.00011273,2]